Cogmind - Beta 13 @@@ ROGUE MODE // 2024.03.31 @ 22:39:31 Player: 3.14 Result: Self-destructed Performance ------------- Evolutions (2) 1000 Regions Visited (3) 600 Robots Destroyed (48) 240 Value Destroyed (1021) 1021 Prototype IDs (2) 40 Alien Tech Used (0) 0 Bonus (0) 0 TOTAL SCORE: 2901 Bonus ------- None Cogmind --------- Core Integrity 550/550 Matter 215/300 Energy 265/265 System Corruption 0% Temperature Cool (0) Movement Treading (240) Ox1 Location -8/Materials Parts ------- > --- POWER (1) -------- Improved Ion Engine > --- PROPULSION (3) --- Light Treads Light Treads Light Treads > --- UTILITY (5) ------ Improved Heat Sink Huge Storage Unit Medium Armor Plating Medium Armor Plating Medium Armor Plating > --- WEAPON (2) ------- Heavy Assault Rifle Light Cannon > --- INVENTORY (25) --- Improved Ion Engine Light Treads Light Treads Light Treads Light Treads Light Treads Light Treads Cooling System High-capacity Matter Pod (131) Medium Armor Plating Medium Armor Plating Hacking Suite Authchip [R/Combat] Authchip [R/Combat] Long-range Tractor Beam Beam Rifle Beam Rifle Particle Cannon Particle Cannon Heavy Assault Rifle Heavy Assault Rifle Light Cannon Improved Grenade Launcher Improved Grenade Launcher Datajack Peak State ------------ > --- POWER ------------ Improved Ion Engine > --- PROPULSION ------- Light Treads Light Treads Light Treads > --- UTILITY ---------- Improved Heat Sink Huge Storage Unit Light Armor Plating Medium Armor Plating Medium Armor Plating > --- WEAPON ----------- Heavy Assault Rifle Improved Grenade Launcher > --- INVENTORY -------- Improved Ion Engine Light Treads Light Treads Light Treads Light Treads Light Treads Light Treads High-capacity Matter Pod Medium Armor Plating Medium Armor Plating Medium Armor Plating Hacking Suite Authchip [R/Combat] Authchip [R/Combat] Long-range Tractor Beam Beam Rifle Beam Rifle Particle Cannon Particle Cannon Heavy Assault Rifle Heavy Assault Rifle Light Cannon Light Cannon Improved Grenade Launcher Datajack [Rating: 23] Favorites ----------- Power Ion Engine Engine Ion Engine Propulsion Light Treads Treads Light Treads Utility Improved Heat Sink Device Improved Heat Sink Storage Huge Storage Unit Processor Transport Network Coupler Protection Medium Armor Plating Weapon Light Cannon Energy Gun Small Laser Energy Cannon Beam Cannon Ballistic Gun Heavy Assault Rifle Ballistic Cannon Light Cannon Launcher Improved Grenade Launcher Build | -11 -10 -9 -8 ------- Run | Yrd Mat Mat Mat Slots Evolved 4 | . . 2 2 Power . | . . . . Propulsion 1 | . . . 1 Utility 3 | . . 2 1 Weapon . | . . . . Parts Attached 35 | 8 10 9 8 Power 3 | 1 1 1 . Engine 3 | 1 1 1 . Core . | . . . . Reactor . | . . . . Propulsion 8 | 2 1 4 1 Treads 8 | 2 1 4 1 Leg . | . . . . Wheel . | . . . . Hover . | . . . . Flight . | . . . . Utility 12 | 2 4 2 4 Device 4 | 1 2 . 1 Storage 2 | 1 1 . . Processor 1 | . 1 . . Hackware . | . . . . Protection 5 | . . 2 3 Artifact . | . . . . Weapon 12 | 3 4 2 3 Energy Gun 4 | 2 2 . . Energy Cannon 1 | . 1 . . Ballistic Gun 3 | 1 . 2 . Ballistic Cannon 3 | . 1 . 2 Launcher 1 | . . . 1 Special Weapon . | . . . . Impact Weapon . | . . . . Slashing Weapon . | . . . . Piercing Weapon . | . . . . Special Melee Weapon . | . . . . Unidentified Prototypes . | . . . . Parts Lost . | . . . . Power . | . . . . Propulsion . | . . . . Utility . | . . . . Weapon . | . . . . Highest Loss Streak . | . . . . To Critical Strikes . | . . . . Average Slot Usage (%) 99 | . 99 100 98 Engine 12 | . 14 11 9 Treads 25 | . 28 22 27 Device 11 | . 13 11 9 Storage 12 | . 14 11 9 Protection 12 | . . 22 26 Energy Gun 4 | . 8 2 . Energy Cannon 2 | . 5 . . Ballistic Gun 8 | . 7 8 9 Ballistic Cannon 8 | . 6 11 8 Naked Turns . | . . . . Heaviest Build 115 | 14 90 104 115 Greatest Support 60 | 40 40 40 60 Greatest Overweight (x) 2 | . 2 2 1 Average Overweight (x) 1 | . 1 2 1 Largest Inventory Capacity 25 | 8 25 25 25 Average Capacity 22 | 7 20 25 25 Most Carried 25 | 4 16 25 25 Average Carried 16 | 2 11 21 24 Final Capacity 25 | 8 25 25 25 Final Carried 25 | 4 16 25 25 Class Distribution -------------------- 72% | Scavenger-Mutant 27% | Mutant Dominant Class ---------------- Mutant | -10/Materials Scavenger-Mutant | -9/Materials Scavenger-Mutant | -8/Materials Resources | -11 -10 -9 -8 ----------- Run | Yrd Mat Mat Mat Matter Collected 1181 | 282 331 384 184 Remotely . | . . . . Salvage Created 1737 | 97 527 990 123 Parts 114 | 10 27 70 7 Haulers Intercepted 6 | . 2 4 . Recyclers Shooed 4 | . . 4 . Parts Field Recycled . | . . . . Retrieved Matter . | . . . . Parts Self-Destructed . | . . . . Prevented . | . . . . Kills | -11 -10 -9 -8 ------- Run | Yrd Mat Mat Mat Combat Hostiles Destroyed 29 | . 9 16 4 Guns 12 | . 4 8 . Cannons 15 | . 5 8 2 AOE 2 | . . . 2 Classes Destroyed 9 | 2 3 4 . Worker 1 | . . 1 . Builder 2 | . . 2 . Tunneler 3 | 2 . 1 . Hauler 6 | . 2 4 . Recycler 6 | 1 1 4 . Operator 1 | . . 1 . Swarmer 8 | . 2 6 . Grunt 15 | . 7 5 3 Sentry 6 | . . 5 1 Best Kill Streak 6 | 2 3 6 3 Combat Bots Only 5 | . 3 5 3 Max Kills in Single Turn 2 | 1 1 1 2 Gunslinging . | . . . . Exploded 2 | . . . 2 Melee . | . . . . Uniques/NPCs Destroyed . | . . . . Combat | -11 -10 -9 -8 -------- Run | Yrd Mat Mat Mat Hostile Shots Fired 137 | . 65 58 14 Missed 43 | . 20 16 7 Damage Taken 1140 | . 526 440 174 Core 162 | . 99 63 . Absorbed by Shields . | . . . . Regen/Repaired (Parts) 296 | . 45 117 134 Core Remaining (%) 81 | 100 60 84 . Volleys Fired 126 | 6 51 60 9 Largest 2 | 2 2 2 2 Hottest 80 | 70 80 75 58 Shots Fired 250 | 12 102 120 16 Gun 145 | 12 66 60 7 Cannon 103 | . 36 60 7 Launcher 2 | . . . 2 Special . | . . . . Kinetic 177 | 6 51 106 14 Thermal 71 | 6 51 14 . Explosive 2 | . . . 2 Electromagnetic . | . . . . Robot Hit Streak 10 | 7 10 10 3 Robot Miss Streak 5 | 2 5 3 4 Penetration Max . | . . . . Secondary Targets . | . . . . Shots Hit Robots 149 | 9 62 71 7 Core Hits 77 | 4 26 37 10 Critical Kills 1 | . . 1 . Critical Parts Destroyed . | . . . . Critical Strikes 1 | . . 1 . Destroy 1 | . . 1 . Melee Attacks . | . . . . Impact . | . . . . Slashing . | . . . . Piercing . | . . . . Sneak Attacks . | . . . . Combat Hostiles . | . . . . Follow-up Attacks . | . . . . Damage Inflicted 2605 | 96 835 1243 431 Guns 959 | 96 352 479 32 Cannons 1260 | . 437 735 88 Explosions 303 | . . . 303 Melee . | . . . . Ramming 83 | . 46 29 8 Kinetic 1540 | 34 227 1159 120 Thermal 679 | 62 562 55 . Explosive 303 | . . . 303 Electromagnetic . | . . . . Impact . | . . . . Slashing . | . . . . Piercing . | . . . . Highest Corruption . | . . . . Average Corruption . | . . . . Corruption Purged . | . . . . Corruption Blocked . | . . . . Overload Shots . | . . . . Overflow Damage . | . . . . Projectiles . | . . . . Explosions . | . . . . Melee . | . . . . Knockbacks 9 | . . 7 2 Impact . | . . . . Kinetic 9 | . . 7 2 Secondary . | . . . . Self-Inflicted Damage 61 | . . . 61 Shots 2 | . . . 2 Rammed 16 | 1 8 6 1 Targets Rammed 16 | 1 8 6 1 Kicked . | . . . . Crushed . | . . . . Highest Temperature 232 | 50 232 3 16 Average Temperature 59 | 26 64 3 10 Received Heat Transfer 474 | . 285 108 81 Siege Activations . | . . . . Robots Corrupted . | . . . . Combat Hostiles . | . . . . Parts Fried . | . . . . Impact Corruptions . | . . . . Robots Melted . | . . . . Combat Hostiles . | . . . . Parts Melted . | . . . . Heat Transferred 1605 | 185 1295 125 . Parts Sabotaged . | . . . . Parts Stolen . | . . . . Parts Stripped . | . . . . Power Chain Reactions . | . . . . Alert | -11 -10 -9 -8 ------- Run | Yrd Mat Mat Mat Peak Influence 183 | 15 165 163 183 Initial 33 | . 9 5 33 Average 59 | 5 39 77 82 Maximum Alert Level . | . . . . Low Security (%) 100 | 100 100 100 100 Level 1 . | . . . . Level 2 . | . . . . Level 3 . | . . . . Level 4 . | . . . . Level 5 . | . . . . High Security . | . . . . Max Security . | . . . . Squads Dispatched 6 | . 2 2 2 Investigation 2 | . . 1 1 Extermination . | . . . . Reinforcement 4 | . 2 1 1 Assault . | . . . . Garrison . | . . . . Intercept . | . . . . Searches Triggered . | . . . . Construction Impeded . | . . . . Haulers Reinforced . | . . . . Active Scanning Responses . | . . . . Cargo Convoy Interrupts . | . . . . Stealth | -11 -10 -9 -8 --------- Run | Yrd Mat Mat Mat Distress Signals 10 | . 3 5 2 Communications Jammed . | . . . . Distress Signals . | . . . . Times Spotted 76 | . 32 35 9 Peak Tracking Total 5 | . 5 3 4 Tactical Retreats 2 | . 1 1 . Traps | -11 -10 -9 -8 ------- Run | Yrd Mat Mat Mat Traps Triggered . | . . . . Indirectly . | . . . . Trap Hack Attempts . | . . . . Triggered . | . . . . Disarmed . | . . . . Reprogrammed . | . . . . Reused . | . . . . Traps Extracted . | . . . . Installed . | . . . . Triggered . | . . . . Machines | -11 -10 -9 -8 ---------- Run | Yrd Mat Mat Mat Machines Disabled . | . . . . Max in Single Turn . | . . . . Machines Repaired . | . . . . Machines Dismantled . | . . . . Machines Sabotaged . | . . . . Overloaded Fab Kills . | . . . . Hacking | -11 -10 -9 -8 --------- Run | Yrd Mat Mat Mat Machines Accessed 15 | . 5 6 4 Terminals 10 | . 4 4 2 Fabricators . | . . . . Repair Stations 4 | . 1 2 1 Recycling Units . | . . . . Scanalyzers . | . . . . Garrison Access 1 | . . . 1 Total Hacks 43 | . 17 15 11 Successful 18 | . 8 6 4 Failed 25 | . 9 9 7 Catastrophic 4 | . 2 1 1 Database Lockouts . | . . . . Manual 23 | . 10 10 3 Terminals 27 | . 14 10 3 Fabricators . | . . . . Repair Stations 13 | . 3 5 5 Recycling Units . | . . . . Scanalyzers . | . . . . Garrison Access 3 | . . . 3 Terminal Hacks 9 | . 6 3 . Robot Analysis 3 | . 2 1 . Prototype ID Bank 1 | . 1 . . Branch Access Points 1 | . . 1 . Terminal Index 1 | . 1 . . Unreport Threat 1 | . 1 . . Locate Traps 1 | . 1 . . Hauler Manifests 1 | . . 1 . Fabricator Hacks . | . . . . Repair Station Hacks 9 | . 2 3 4 Scan Component 5 | . 1 2 2 Repair 4 | . 1 1 2 Recycling Unit Hacks . | . . . . Scanalyzer . | . . . . Garrison Access Hacks . | . . . . Unauthorized Hacks . | . . . . Terminals . | . . . . Fabricators . | . . . . Repair Stations . | . . . . Recycling Units . | . . . . Scanalyzers . | . . . . Garrison Access . | . . . . Data Cores Recovered . | . . . . Used . | . . . . Hacking Detections 13 | . 3 6 4 Full Trace Events 2 | . . 1 1 Feedback Events . | . . . . Feedback Blocked . | . . . . Robot Schematics Acquired . | . . . . Robots Built . | . . . . Authchips . | . . . . Time . | . . . . Total Robot Build Rating . | . . . . Part Schematics Acquired . | . . . . Parts Built . | . . . . Authchips . | . . . . Time . | . . . . Total Part Build Rating . | . . . . Parts Repaired 4 | . 1 1 2 Time 110 | . 26 26 58 Parts Recycled . | . . . . Recycled Matter . | . . . . Retrieved Matter . | . . . . Retrieved Components . | . . . . Parts Scanalyzed . | . . . . Part Schematics Acquired . | . . . . Parts Damaged . | . . . . Bothacking | -11 -10 -9 -8 ------------ Run | Yrd Mat Mat Mat Used RIF Installer . | . . . . Robots Hacked . | . . . . Non-combat . | . . . . Combat . | . . . . Robot Hacks Applied . | . . . . Relay Couplers Released . | . . . . Fabnet Peak Effective % . | . . . . Robots Rewired . | . . . . Allies Hacked . | . . . . Hacks Repelled . | . . . . Allies | -11 -10 -9 -8 -------- Run | Yrd Mat Mat Mat Total Allies . | . . . . Largest Group . | . . . . Highest-Rated Group . | . . . . Highest-Rated Ally . | . . . . Total Orders . | . . . . Ally Attacks . | . . . . Total Damage . | . . . . Kills . | . . . . Allies Corrupted . | . . . . Allies Melted . | . . . . Intel | -11 -10 -9 -8 ------- Run | Yrd Mat Mat Mat Robot Analysis Total 3 | . 2 1 . Derelict Logs Recovered . | . . . . Drone Launches . | . . . . Drone Recoveries . | . . . . Exploration | -11 -10 -9 -8 ------------- Run | Yrd Mat Mat Mat Turns Passed 3825 | 99 1716 1631 379 Spaces Moved 1157 | 43 573 430 111 Core 3 | 3 . . . Treads 1154 | 40 573 430 111 Legs . | . . . . Wheels . | . . . . Hover . | . . . . Flight . | . . . . Fastest Speed 50 | 50 160 320 240 Average Speed 276 | 152 259 320 240 Slowest Speed 320 | 160 320 320 240 Overloaded Moves . | . . . . Propulsion Burnouts . | . . . . Robots Hopped . | . . . . Cave-ins Triggered . | . . . . Exploration Rate (%) 38 | 4 93 43 15 Regions Visited 3 Branch Regions . Pre-discovered Areas . | . . . . Known Exits Taken . | . . . . Unknown Exits Taken 3 | 1 1 1 . Scrap Searched . | . . . . Spaces Dug 13 | . . . 13 Terrain Destroyed 19 | . . . 19 Melee . | . . . . Projectile . | . . . . AOE 19 | . . . 19 Terrain Rammed . | . . . . Walls Destroyed . | . . . . Machines Disabled . | . . . . Actions | -11 -10 -9 -8 --------- Run | Yrd Mat Mat Mat Total 1529 | 62 698 561 208 Wait 118 | . 29 25 64 Move 1155 | 43 572 429 111 Hop . | . . . . Pick Up 50 | 5 18 19 8 Fast Attach 12 | 6 3 1 2 Attach 9 | 1 2 3 3 Detach . | . . . . Swap 14 | 1 5 5 3 Drop 30 | . 10 13 7 Fire 126 | 6 51 60 9 Melee . | . . . . Ram . | . . . . Kick . | . . . . Crush 15 | . 8 6 1 Escape Stasis . | . . . . Rewire . | . . . . Trap . | . . . . Miscellaneous . | . . . . Route ------- -11/Scrapyard -10/Materials (discovered 5 exits: *Mat x3 / [*Min x2]) -9/Materials (discovered 2 exits: *Mat / *Min) -8/Materials History --------- Turn | Location | Event 9 | -11/Scrapyard | Discovered new exit (range 15) 100 | -11/Scrapyard | Entered Materials 301 | -10/Materials | Repaired Med. Laser 322 | -10/Materials | Build established: Mutant 487 | -10/Materials | Discovered new exit (range 16) 723 | -10/Materials | Discovered new exit (range 10) 1019 | -10/Materials | Discovered new exit (range 11) 1199 | -10/Materials | Discovered new exit (range 16) 1353 | -10/Materials | Build established: Scavenger-Mutant 1498 | -10/Materials | Discovered new exit (range 11) 1816 | -10/Materials | Entered another Materials area 1816 | -9/Materials | Evolved 2 slots: Utility x2 2053 | -9/Materials | Repaired Lgt. Treads 2168 | -9/Materials | Identified exit to Mines 3389 | -9/Materials | Discovered new exit (range 11) 3447 | -9/Materials | Entered another Materials area 3447 | -8/Materials | Evolved 2 slots: Propulsion x1, Utility x1 3502 | -8/Materials | Repaired Med. Armor Plating 3529 | -8/Materials | Repaired Lgt. Cannon 3826 | -8/Materials | Self-destructed Last Messages --------------- 03753_ U-05 Engineer builds a Wall. 03757_ Acquired 12 matter. 03758_ U-05 Engineer lays Concrete. 03760_ The unstable cave ceiling collapses. 03760_ U-05 Engineer builds a Door. 03762_ Dropped Imp. Heat Sink. 03762_ U-05 Engineer lays Concrete. 03763_ Acquired 4 matter. 03764_ U-05 Engineer lays Concrete. 03767_ U-05 Engineer builds a Wall. 03767_ U-05 Engineer lays Concrete. 03768_ U-05 Engineer builds a Wall. 03770_ U-05 Engineer lays Concrete. 03772_ U-05 Engineer builds a Wall. 03809_ Dropped Lgt. Armor Plating. 03813_ Acquired Cooling System. 03826_ Connecting with Garrison Access... 03826_ ALERT: Suspicious activity at Garrison Access M001. Dispatching Investigation squad. 03826_ Garrison Access under remote control. Map ----- +----------------------------------------------------+ | ?????????????????????????????????????????????????? | | ?????????????????????????????????????????????????? | | ?????????????????????????????????????????????????? | | ?????????????????????????????????????????????????? | | ?????????????????????????????????????????????????? | | ?????????????????????????????????????????????????? | | ?????????????????????????????????????????????????? | | ?????????????????????????????????????????????????? | | ?????????????????????????????????????????????????? | | ?????????????????????????????????????????????????? | | ?????????????????????????????????????????????????? | | ?????????????????????????????????????????????????? | | ???????????????????????????????? ???????????????? | | ???????????????????????????????? #??????????????? | | ???????????????????????????????? #??????????????? | | ???????????????????????????????? #??????????????? | | ??????????????????????????????"" +??????????????? | | ??????????????????????????????"" #??????????????? | | ??????????????????????????????"" #??????????????? | | ?????????????????????????????? !#??????????????? | | ?????????????????????????????? ######?????????? | | ??????????????????????????????" ## #?????????? | | ?????????????????????########## ## " ##????????? | | ?????????????????????# # ## T ##???????? | | ?????????????????????# "" # # " #???????? | | ?????????????????????# "G@ # # # #???????? | | ?????????????????????# "" + # = ##??????? | | ?????????????????????# # # [%[# #??????? | | ?????????????????????# """ # ####/#########+# | | ?????????????????????# """! # =%! | | ?????????????????????# """ # | | ?????????????????????# # " | | ?????????????????????############ #### ##### T | | ??????????????????????????????? # ! ## * | | ????????????????????????????? #"" !! # ! [ | | ????????????????????????????#"S #"Y ] ## | | ????????????????????????????#""" #"" ]]]## # | | ????????????????????????????# "" # ]] ## # | | ????????????????????????????# ! #! ######## | | ????????????????????????????###############??????? | | ?????????????????????????????????????????????????? | | | | | | | | | | | | | | | | | | | +----------------------------------------------------+ Best States ------------- Heat Dissipation 45 Energy Generation 12 Energy Capacity 265 Matter Stores 300 Matter Capacity 300 Sight Range 16 Terrain Scan Range 16 Terrain Scan Density 10 Armor Coverage 675 Evasion (%) 40 Recoil Reduction 3 Authchip Count 4 Item Schematics ----------------- None Robot Schematics ------------------ None Fabricated ------------ Nothing Alien Tech Used ----------------- None Achievements -------------- None Challenges ------------ None Game ------ Seed DisruptionStormVibroblade Manual? 0 Play Time 00:13:06 Cumulative 894.6 hours Start 2024.03.31 @ 22:25:57 End 2024.03.31 @ 22:39:31 Sessions 2 Manual Loads 0 Difficulty Rogue Special Mode None Game No. 1378 Rogue 1378 Adventurer 0 Explorer 0 Win Type - Total 86 Types 52/1/14/14/4/0/0/1/0 Lore% 90 Gallery% 92 Achievement% 85 Wizard Run 0 Options --------- Layout 0 ASCII 1 Keyboard 0 Movement Numpad Keybinds 0 Fullscreen 2 Font 18/SmallcapsGlow Map View 76x50 Zoom Use 0% Tactical HUD 1 Map Filters NONE Filters NONE Steam 1 RUN: 64dc5bf9-4b2a-4a29-af5f-d866957d4711